bitfinex-derivatives/quotes_SOLF0:USTF0_20260312
["timestamp","ask_amount","ask_price","bid_price","bid_amount"]
[1773333080893,10.442,86.172,86.125,8.76355537]
[1773333081701,10.442,86.172,86.127,8.76355537]
[1773333082004,10.441,86.179,86.127,8.76355537]
[1773333082396,10.441,86.186,86.139,8.76347329]
[1773333083196,10.441,86.186,86.121,36.46]
[1773333083197,9.24224264,86.18,86.122,8.76341142]
[1773333084097,10.443,86.163,86.122,8.76341142]
[1773333086802,10.442,86.171,86.124,10.448]
[1773333087003,10.442,86.171,86.125,8.74732889]
[1773333088107,8.54100385,86.195,86.131,8.7472508]
[1773333088305,8.54100385,86.205,86.131,8.7472508]
[1773333088502,8.54100385,86.217,86.137,8.7472508]
[1773333088712,8.54100385,86.216,86.137,8.7472508]
[1773333088914,8.54100385,86.215,86.137,8.7472508]
[1773333089116,8.54100385,86.214,86.139,8.76427343]
[1773333089316,8.54100385,86.227,86.161,8.76427343]
[1773333089512,8.54100385,86.226,86.161,8.76427343]
[1773333089715,10.437,86.214,86.161,8.76427343]
[1773333090119,8.54100385,86.234,86.161,8.76427343]
[1773333090314,8.54100385,86.245,86.188,8.76420239]
[1773333090518,8.54100385,86.25,86.188,8.76420239]
[1773333090820,10.433,86.248,86.198,8.76420239]
[1773333091016,8.54100385,86.258,86.198,8.76420239]
[1773333091217,8.54100385,86.265,86.198,8.76420239]
[1773333091419,8.54100385,86.277,86.217,8.653736]
[1773333091612,0.25498992,86.285,86.217,8.653736]
[1773333091817,9.24224264,86.29,86.217,8.653736]
[1773333091818,10.428,86.29,86.234,8.653736]
[1773333092014,8.79599377,86.304,86.234,8.653736]
[1773333092219,0.25498992,86.304,86.234,8.653736]
[1773333092620,10.427,86.299,86.244,8.65364463]
[1773333092814,0.25498992,86.304,86.244,8.65364463]
[1773333093021,8.54100385,86.329,86.23,9.24224264]
[1773333093022,0.33716589,86.328,86.254,8.61438555]
[1773333093513,0.3405906,86.309,86.254,8.61438555]
[1773333093821,10.427,86.301,86.254,8.61438555]
[1773333094423,0.3405906,86.309,86.254,8.61438555]
[1773333095217,10.427,86.299,86.254,8.61438555]
[1773333095623,0.3405906,86.309,86.254,8.61438555]
[1773333096026,10.7665906,86.309,86.254,8.61438555]
[1773333096217,0.30280556,86.328,86.254,8.61438555]
[1773333096624,0.30280556,86.328,86.256,8.6383441]
[1773333097418,10.425,86.315,86.256,8.6383441]
[1773333097620,0.30280556,86.328,86.256,8.6383441]
[1773333097824,10.422,86.341,86.272,8.63384727]
[1773333098226,36.46,86.366,86.272,8.63384727]
[1773333098426,0.31824619,86.365,86.272,8.63384727]
[1773333099226,0.30012138,86.383,86.298,8.64453526]
[1773333099627,0.30012138,86.369,86.298,8.64453526]
[1773333100824,10.423,86.334,86.264,8.65290393]
[1773333101230,0.30345026,86.351,86.264,8.65290393]
[1773333101529,0.30345026,86.351,86.286,8.65290393]
[1773333102121,9.24224264,86.36,86.258,36.44]
[1773333102122,0.29285481,86.371,86.288,8.65282477]
[1773333102322,0.27741964,86.369,86.288,8.65282477]
[1773333102519,0.27741964,86.369,86.258,36.44]
[1773333102520,0.27741964,86.349,86.261,8.75732545]
[1773333102728,10.425,86.315,86.261,8.75732545]
[1773333103132,10.426,86.306,86.261,8.75732545]
[1773333104328,0.25638109,86.329,86.261,8.75732545]
[1773333104732,9.24224264,86.31,86.235,8.75732545]
[1773333105032,10.427,86.3,86.235,8.75732545]
[1773333106030,10.427,86.3,86.238,8.75732545]
[1773333106632,10.427,86.3,86.239,10.434]
[1773333106833,10.427,86.3,86.24,8.75732545]
[1773333107134,10.68572938,86.309,86.24,8.75732545]
[1773333107438,0.25972938,86.309,86.243,8.75732545]
[1773333107828,10.429,86.283,86.243,8.75732545]
[1773333108025,10.429,86.283,86.225,8.75732545]
[1773333108633,10.43,86.272,86.225,8.75732545]
[1773333108834,0.11259299,86.312,86.225,8.75732545]
[1773333109026,0.08474876,86.289,86.226,8.76020939]
[1773333109224,0.08474876,86.289,86.209,36.44]
[1773333109225,0.08474876,86.289,86.21,8.76020939]
[1773333109831,0.08474876,86.289,86.212,8.76020939]
[1773333110835,10.431,86.264,86.212,8.76020939]
[1773333111532,10.431,86.264,86.213,8.78694568]
[1773333111832,0.03897283,86.269,86.213,8.78694568]
[1773333112035,0.03897283,86.269,86.186,8.78689236]
[1773333112235,9.21097046,86.25,86.186,8.78689236]
[1773333112736,0.03897283,86.269,86.186,8.78689236]
[1773333112935,9.21097046,86.25,86.186,8.78689236]
[1773333113137,0.03897283,86.269,86.186,8.78689236]
[1773333113832,10.433,86.246,86.187,10.44]
[1773333114033,10.433,86.246,86.188,8.83391697]
[1773333114935,10.433,86.246,86.185,36.46]
[1773333114936,10.433,86.246,86.191,8.87661386]
[1773333116031,10.433,86.246,86.194,8.87657748]
[1773333116732,10.432,86.257,86.201,19.31557748]
[1773333117036,10.432,86.257,86.202,8.87657748]
[1773333117739,10.433,86.25,86.202,8.87657748]
[1773333118141,9.21097046,86.27,86.202,8.87657748]
[1773333118632,9.21097046,86.25,86.186,8.87007829]
[1773333119341,19.64397046,86.25,86.195,8.87087767]
[1773333119543,10.433,86.25,86.195,8.87087767]
[1773333120335,10.431,86.263,86.198,8.87084227]
[1773333120942,9.21097046,86.29,86.218,8.87074817]
[1773333121336,10.431,86.265,86.218,8.87074817]
[1773333121542,9.21097046,86.27,86.218,8.87074817]
[1773333121843,9.21097046,86.27,86.2,8.87074817]
[1773333122039,9.21097046,86.25,86.2,8.87074817]
[1773333122233,9.21097046,86.25,86.185,36.46]
[1773333122437,9.21097046,86.25,86.186,8.87071348]
[1773333122842,0.2791372,86.249,86.186,8.87071348]
[1773333123046,10.436,86.227,86.186,8.87071348]
[1773333123546,10.435,86.235,86.186,8.87071348]
[1773333124344,10.434,86.243,86.188,8.6819802]
[1773333124544,0.2791372,86.249,86.188,8.6819802]
[1773333125143,0.25019438,86.267,86.192,8.70036871]
[1773333125536,9.21097046,86.27,86.185,36.46]
[1773333125537,0.25019438,86.265,86.185,36.46]
[1773333125844,9.21097046,86.24,86.185,36.46]
[1773333126035,0.25019438,86.241,86.186,8.70031037]
[1773333126645,0.25019438,86.241,86.187,8.70031037]
[1773333126847,0.25284823,86.258,86.187,8.70031037]
[1773333127340,0.30529448,86.249,86.187,8.70031037]
[1773333128046,0.30529448,86.249,86.191,8.67527592]
[1773333128349,0.30788702,86.267,86.191,8.67527592]
[1773333128742,0.30788702,86.267,86.2,8.67527592]
[1773333129248,10.432,86.257,86.212,8.67736877]
[1773333129449,0.30788702,86.267,86.194,8.67736877]
[1773333129844,10.434,86.24,86.194,8.67736877]
[1773333130945,10.435,86.234,86.194,8.67736877]
[1773333131148,0.42003597,86.252,86.194,8.67736877]
[1773333132048,0.42003597,86.252,86.185,36.46]
[1773333132250,0.42483408,86.219,86.144,8.6216276]
[1773333132548,0.42483408,86.199,86.116,8.6216276]
[1773333132850,0.42483408,86.199,86.121,8.6216276]
[1773333133651,0.409689,86.217,86.142,8.63038496]
[1773333134248,0.409689,86.217,86.144,8.6303215]
[1773333135659,11.47189836,86.237,86.152,8.95161186]
[1773333135961,11.47189836,86.237,86.154,8.95161186]
[1773333136154,11.47189836,86.237,86.184,8.95159719]
[1773333136557,9.21097046,86.26,86.184,8.95159719]
[1773333137058,10.433,86.244,86.187,8.96311218]
[1773333137957,10.432,86.253,86.194,8.96309898]
[1773333138560,10.431,86.264,86.205,8.96309898]
[1773333138856,9.21097046,86.28,86.205,8.96309898]
[1773333139056,10.433,86.25,86.205,8.96309898]
[1773333139661,11.54047705,86.279,86.205,8.96309898]
[1773333139860,9.21097046,86.28,86.205,8.96309898]
[1773333140054,9.21097046,86.3,86.207,8.95979382]
[1773333140251,9.21097046,86.3,86.221,8.95979382]
[1773333140554,9.21097046,86.32,86.222,8.95979382]
[1773333140752,9.21097046,86.32,86.236,8.95979382]
[1773333141153,9.21097046,86.3,86.236,8.95979382]
[1773333141350,9.21097046,86.3,86.201,8.94982978]
[1773333141554,9.21097046,86.3,86.203,8.94982978]
[1773333141750,9.21097046,86.3,86.224,8.94982978]
[1773333142562,9.21097046,86.28,86.201,8.94981589]
[1773333142959,0.03806107,86.279,86.201,8.94981589]
[1773333143257,10.43,86.271,86.208,8.82232999]
[1773333144559,10.429,86.28,86.214,8.82230487]
[1773333145263,9.21097046,86.28,86.219,8.8267097]
[1773333145459,0.03399113,86.279,86.219,8.8267097]
[1773333145655,10.434,86.244,86.198,8.8267097]
[1773333145958,0.03399113,86.257,86.198,8.8267097]
[1773333146965,10.432,86.254,86.198,8.8267097]
[1773333147368,0.03399113,86.257,86.198,8.8267097]
[1773333148069,10.434,86.237,86.198,8.8267097]
[1773333148272,10.434,86.237,86.181,8.82647101]
[1773333148461,0.03399113,86.257,86.181,8.82647101]
[1773333148667,10.434,86.238,86.183,10.441]
[1773333148862,10.434,86.238,86.184,8.82647101]
[1773333149765,10.433,86.246,86.188,8.82994073]
[1773333150166,8.59258484,86.279,86.188,8.82994073]
[1773333150371,0.03507439,86.278,86.188,8.82994073]
[1773333150871,0.03507439,86.278,86.198,8.82991625]
[1773333151572,8.59258484,86.295,86.207,8.83861087]
[1773333151775,8.59258484,86.297,86.207,8.83861087]
[1773333151969,0.02056713,86.299,86.207,8.83861087]
[1773333152176,0.02056713,86.297,86.207,8.83861087]
[1773333152377,0.02056713,86.296,86.207,8.83861087]
[1773333152774,0.02056713,86.296,86.211,8.83858945]
[1773333152979,10.43,86.273,86.218,8.83051121]
[1773333154081,10.431,86.266,86.221,8.83048983]
[1773333154684,10.6108154,86.307,86.221,8.83048983]
[1773333154685,10.432,86.256,86.221,8.83048983]
[1773333155279,0.03952203,86.276,86.204,8.80302293]
[1773333155485,0.09579168,86.259,86.204,8.80302293]
[1773333156288,10.435,86.231,86.204,8.80302293]
[1773333156786,10.434,86.239,86.204,8.80302293]
[1773333158093,10.433,86.247,86.204,8.80302293]
[1773333159489,8.59258484,86.276,86.207,8.95084618]
[1773333159490,10.432,86.256,86.207,8.95084618]
[1773333160780,9.21097046,86.28,86.209,8.95083494]
[1773333160981,8.67227651,86.283,86.211,8.9544085]
[1773333161192,8.67227651,86.299,86.211,8.9544085]
[1773333161389,8.67227651,86.299,86.21,9.21097046]
[1773333161390,8.67227651,86.298,86.226,8.9544085]
[1773333161590,17.88324697,86.3,86.226,8.9544085]
[1773333161791,9.21097046,86.3,86.226,8.9544085]
[1773333161987,10.429,86.277,86.228,8.95439756]
[1773333162383,9.21097046,86.3,86.228,8.95439756]
[1773333163489,10.428,86.287,86.23,8.94481994]
[1773333164288,11.60489613,86.317,86.245,8.94480939]
[1773333164490,9.21097046,86.3,86.221,8.94480939]
[1773333164682,10.43,86.27,86.222,8.94480939]
[1773333164886,9.21097046,86.29,86.222,8.94480939]
[1773333165290,10.43,86.271,86.222,8.94480939]
[1773333165891,10.43,86.271,86.224,8.95011852]
[1773333166089,10.429,86.28,86.224,8.95011852]
[1773333166988,10.429,86.28,86.226,8.92797684]
[1773333167190,9.21617691,86.29,86.226,8.92797684]
[1773333168986,10.429,86.279,86.228,8.92783695]
[1773333170200,9.21617691,86.29,86.228,8.92783695]
[1773333171489,10.431,86.264,86.228,8.92783695]
[1773333171692,9.21617691,86.27,86.207,8.92767487]
[1773333172297,9.21617691,86.29,86.207,8.92767487]
[1773333172597,9.21617691,86.29,86.223,8.92766339]
[1773333172598,10.43,86.277,86.223,8.92766339]
[1773333173097,8.6757658,86.307,86.235,8.92557158]
[1773333173300,9.21617691,86.31,86.235,8.92557158]
[1773333174994,10.428,86.287,86.244,8.91508581]
[1773333175502,9.21617691,86.31,86.244,8.91508581]
[1773333175698,8.6757658,86.319,86.244,8.91508581]
[1773333175995,9.21617691,86.36,86.251,8.91507524]
[1773333176394,9.21617691,86.36,86.241,36.48]
[1773333176395,9.21617691,86.36,86.28,8.91507524]
[1773333176903,36.48,86.363,86.292,8.91507524]
[1773333177494,9.21617691,86.37,86.304,8.91054861]
[1773333177896,36.48,86.386,86.304,8.91054861]
[1773333178099,9.21617691,86.4,86.311,8.91053925]
[1773333178295,9.21617691,86.4,86.305,36.48]
[1773333178296,9.21617691,86.4,86.331,8.91053925]
[1773333178496,9.21617691,86.38,86.313,8.91053925]
[1773333178899,0.0478079,86.379,86.313,8.91053925]
[1773333179397,0.0478079,86.379,86.302,36.48]
[1773333179398,10.417,86.377,86.315,8.84635271]
[1773333179595,36.48,86.394,86.315,8.84635271]
[1773333179596,0.04869688,86.397,86.315,8.84635271]
[1773333180804,10.417,86.38,86.329,8.84633982]
[1773333181303,10.416,86.39,86.329,8.84633982]
[1773333182203,0.04869688,86.397,86.329,8.84633982]
[1773333182398,36.48,86.405,86.329,8.84633982]
[1773333182597,10.413,86.411,86.348,8.79282049]
[1773333182796,0.15834589,86.414,86.348,8.79282049]
[1773333184503,10.414,86.403,86.35,8.75228022]
[1773333184806,0.15834589,86.414,86.35,8.75228022]
[1773333185002,10.415,86.395,86.35,8.75228022]
[1773333185300,0.15834589,86.414,86.35,8.75228022]
[1773333185507,10.409,86.446,86.386,8.80210442]
[1773333185702,280.63163406,86.454,86.386,8.80210442]
[1773333186002,0.14320427,86.453,86.386,8.80210442]
[1773333186305,0.14320427,86.439,86.386,8.80210442]
[1773333186505,10.41,86.438,86.386,8.80210442]
[1773333186700,0.14320427,86.453,86.386,8.80210442]
[1773333186901,9.35938118,86.42,86.347,8.80208814]
[1773333187106,0.22249217,86.419,86.347,8.80208814]
[1773333188006,0.22249217,86.419,86.349,8.76244419]
[1773333188707,10.415,86.396,86.349,8.76244419]
[1773333188908,0.22249217,86.419,86.349,8.76244419]
[1773333189704,9.21617691,86.4,86.35,8.70328356]
[1773333190501,0.34416632,86.399,86.329,8.70326506]
[1773333190703,9.21617691,86.4,86.329,8.70326506]
[1773333191306,0.30488456,86.433,86.342,8.72331065]
[1773333191502,9.21617691,86.42,86.342,8.72331065]
[1773333191811,0.30488456,86.419,86.342,8.72331065]
[1773333192304,2.01415698,86.447,86.322,36.46]
[1773333192305,0.30570082,86.442,86.354,8.72329332]
[1773333192505,9.52187773,86.41,86.354,8.72329332]
[1773333192808,0.30570082,86.409,86.354,8.72329332]
[1773333193210,0.0730643,86.391,86.354,8.72329332]
[1773333193406,0.0730643,86.391,86.328,36.46]
[1773333193606,0.0730643,86.391,86.329,8.72799289]
[1773333194009,10.414,86.407,86.347,8.72797591]
[1773333195009,10.414,86.407,86.35,8.74974795]
[1773333195208,0.25379963,86.417,86.35,8.74974795]
[1773333195903,10.412,86.418,86.35,8.74974795]
[1773333196105,10.412,86.418,86.359,8.74974571]
[1773333197410,0.13604282,86.419,86.341,8.8087259]
[1773333198211,10.414,86.403,86.352,10.42]
[1773333198608,10.415,86.395,86.344,8.80872424]
[1773333199009,0.13604282,86.419,86.344,8.80872424]
[1773333199213,10.415,86.398,86.347,19.22918717]
[1773333199605,10.415,86.398,86.348,8.80818717]
[1773333200013,0.13604282,86.419,86.359,8.80818553]
[1773333200612,10.414,86.406,86.359,8.80818553]
[1773333200911,0.07306511,86.398,86.359,8.80818553]
[1773333201307,0.07306511,86.398,86.323,36.46]
[1773333201308,0.07306511,86.398,86.324,8.81196723]
[1773333201903,9.34517911,86.4,86.324,8.81196723]
[1773333202104,0.1290022,86.399,86.324,8.81196723]
[1773333202518,0.12914559,86.379,86.307,8.81196595]
[1773333202710,9.21617691,86.36,86.307,8.81196595]
[1773333203013,0.12689937,86.359,86.307,8.81196595]
[1773333203510,10.421,86.347,86.307,8.81196595]
[1773333204410,10.422,86.335,86.289,8.81308449]
[1773333204615,0.12689937,86.359,86.289,8.81308449]
[1773333204809,10.421,86.346,86.297,10.427]
[1773333205005,10.421,86.346,86.298,8.8193564]
[1773333205608,10.421,86.346,86.301,10.427]
[1773333205811,0.11512268,86.376,86.301,8.8193564]
[1773333206015,9.21617691,86.38,86.301,8.8193564]
[1773333206710,0.11527876,86.379,86.317,8.81935162]
[1773333207709,9.21617691,86.36,86.299,8.82789431]
[1773333208115,10.421,86.351,86.308,8.82789201]
[1773333208811,10.421,86.344,86.308,8.82789201]
[1773333209114,0.09846436,86.358,86.308,8.82789201]
[1773333210021,0.09846436,86.358,86.281,36.46]
[1773333210022,0.09846436,86.358,86.29,8.82212097]
[1773333210511,10.421,86.344,86.299,10.427]
[1773333210818,0.09846436,86.358,86.3,8.82211877]
[1773333211017,10.6108154,86.432,86.3,8.82211877]
[1773333211018,0.11074153,86.378,86.3,8.82211877]
[1773333211319,0.11074153,86.378,86.322,10.424]
[1773333212909,10.419,86.364,86.322,10.424]
[1773333213119,0.11074153,86.378,86.322,19.24621061]
[1773333213316,0.11074153,86.378,86.323,8.82221061]
[1773333213515,0.11067876,86.359,86.302,8.82221061]
[1773333214415,9.03011294,86.41,86.29,36.46]
[1773333214416,9.21617691,86.38,86.311,8.82220824]
[1773333214807,10.419,86.361,86.311,8.82220824]
[1773333215013,0.11090325,86.379,86.311,8.82220824]
[1773333215314,0.11090325,86.389,86.311,8.82220824]
[1773333215513,0.11090325,86.389,86.321,8.82228835]
[1773333216411,0.11102575,86.406,86.337,8.8222866]
[1773333216812,9.21617691,86.41,86.337,8.8222866]
[1773333217018,0.11102575,86.425,86.337,8.8222866]
[1773333217713,0.11102575,86.425,86.357,8.88186585]
[1773333217916,9.21617691,86.41,86.357,8.88186585]
[1773333218419,10.414,86.405,86.359,8.88186468]
[1773333219719,10.414,86.405,86.361,8.76085651]
[1773333220217,10.415,86.398,86.361,8.76085651]
[1773333220421,9.03011294,86.409,86.361,8.76085651]
[1773333220622,9.03011294,86.408,86.361,8.76085651]
[1773333220825,9.03011294,86.407,86.361,8.76085651]
[1773333221125,10.415,86.397,86.361,8.76085651]
[1773333221319,9.03011294,86.405,86.361,8.76085651]
[1773333221524,9.03011294,86.404,86.361,8.76085651]
[1773333221721,9.03011294,86.409,86.361,8.76085651]
[1773333221924,10.414,86.405,86.361,8.76085651]
[1773333222321,0.24798828,86.444,86.361,8.76085651]
[1773333222526,8.98474892,86.443,86.398,8.75418794]
[1773333222726,280.63163406,86.454,86.398,8.75418794]
[1773333223123,10.41,86.443,86.398,8.75418794]
[1773333223319,280.63163406,86.454,86.398,8.75418794]
[1773333224633,0.28844871,86.48,86.401,8.73289842]
[1773333224833,0.28844871,86.489,86.401,8.73289842]
[1773333225129,0.29765758,86.469,86.401,8.73289842]
[1773333225330,9.21617691,86.45,86.401,8.73289842]
[1773333225736,10.411,86.433,86.376,8.72839232]
[1773333226633,10.411,86.433,86.379,8.72838817]
[1773333228031,0.29765758,86.449,86.379,8.72838817]
[1773333230928,10.411,86.426,86.379,8.72838817]
[1773333231134,0.29765758,86.449,86.379,8.72838817]
[1773333231333,9.18183152,86.45,86.379,8.72838817]
[1773333231538,9.18183152,86.45,86.372,36.46]
[1773333231539,0.29474402,86.449,86.385,8.72912495]
[1773333232339,10.411,86.429,86.385,8.72912495]
[1773333232639,0.29474402,86.449,86.385,8.72912495]
[1773333233432,9.18183152,86.45,86.385,8.72912495]
[1773333233834,10.41,86.439,86.394,8.73768111]
[1773333234237,9.18183152,86.45,86.394,8.73768111]
[1773333235229,9.18183152,86.45,86.396,8.79138567]
[1773333235431,8.82461791,86.478,86.396,8.79138567]
[1773333235733,0.17059435,86.483,86.401,8.79138567]
[1773333236940,0.17063324,86.465,86.413,8.79138424]
[1773333237634,36.44,86.493,86.413,8.79138424]
[1773333237835,0.27034132,86.494,86.413,8.79138424]
[1773333238035,0.27034738,86.479,86.413,8.79138424]
[1773333238238,10.409,86.449,86.413,8.79138424]
[1773333238837,10.41,86.443,86.413,8.79138424]
[1773333239539,0.31046549,86.459,86.396,8.72163059]
[1773333239938,9.18183152,86.46,86.405,8.72162874]
[1773333240143,0.31046918,86.475,86.405,8.72162874]
[1773333240539,10.408,86.459,86.412,10.413]
[1773333240739,0.31046918,86.475,86.413,8.72162874]
[1773333240940,0.29084448,86.493,86.413,8.72162874]
[1773333241143,0.29084448,86.493,86.432,8.73147269]
[1773333241340,9.18183152,86.5,86.4,9.18183152]
[1773333241341,9.47272887,86.48,86.401,8.73147269]
[1773333241537,10.405,86.484,86.436,10.41]
[1773333241742,0.29089735,86.498,86.437,8.73147269]
[1773333242051,0.29096902,86.479,86.402,8.73147269]
[1773333242341,0.29096902,86.479,86.413,8.73147159]
[1773333243442,10.406,86.471,86.421,8.72617496]
[1773333243745,0.30161165,86.497,86.421,8.72617496]
[1773333243947,0.30161165,86.497,86.422,8.72617392]
[1773333244744,10.406,86.475,86.429,10.411]
[1773333246146,10.406,86.469,86.423,8.72574201]
[1773333246946,9.18183152,86.46,86.406,8.72574201]
[1773333247137,0.28996126,86.459,86.351,8.73222098]
[1773333247344,8.83600825,86.498,86.371,8.73222098]
[1773333247345,0.28996126,86.476,86.371,8.73222098]
[1773333247542,0.28996126,86.476,86.391,8.73222098]
[1773333248147,9.18183152,86.48,86.391,8.73222098]
[1773333248448,9.18183152,86.48,86.393,8.7322202]
[1773333248840,9.18183152,86.48,86.425,10.412]
[1773333249040,9.18183152,86.48,86.392,36.44]
[1773333249041,9.18183152,86.48,86.424,8.73633599]
[1773333249246,0.28997949,86.493,86.424,8.73633599]
[1773333249749,10.405,86.484,86.438,8.73633599]
[1773333250149,10.405,86.484,86.441,8.73633608]
[1773333251247,9.18183152,86.5,86.441,8.73633608]
[1773333251248,10.404,86.491,86.441,8.73633608]
[1773333251449,2.01276486,86.517,86.444,8.67724852]
[1773333251650,11.37113075,86.544,86.47,9.18183152]
[1773333251947,11.37113075,86.544,86.507,8.67724922]
[1773333252545,9.18183152,86.57,86.507,8.67724922]
[1773333252946,10.396,86.553,86.507,8.67724922]
[1773333253343,0.33301448,86.569,86.507,8.67724922]
[1773333253950,10.397,86.543,86.507,8.67724922]
[1773333255346,10.399,86.532,86.489,8.80033068]
[1773333256858,10.4,86.523,86.489,8.80033068]
[1773333257556,10.401,86.515,86.47,8.80840883]
[1773333258759,10.4,86.524,86.47,8.80840883]
[1773333259156,9.18183152,86.53,86.47,8.80840883]
[1773333259361,9.18183152,86.53,86.48,8.83111456]
[1773333259952,10.397,86.546,86.493,8.83112273]
[1773333260156,0.08830927,86.565,86.493,8.83112273]
[1773333260555,10.396,86.555,86.505,8.83112273]
[1773333261356,0.04232151,86.584,86.507,8.84519445]
[1773333261864,0.04232151,86.584,86.512,8.84519445]
[1773333262865,0.07340273,86.557,86.512,8.84519445]
[1773333264557,0.07340273,86.557,86.515,8.82676897]
[1773333265058,10.395,86.564,86.515,8.82676897]
[1773333265460,0.07311368,86.545,86.515,8.82676897]
[1773333265661,10.395,86.564,86.515,8.82676897]
[1773333265858,10.396,86.556,86.531,0.07325574]
[1773333266065,9.18183152,86.57,86.531,0.07325574]
[1773333266462,10.394,86.568,86.517,8.87860749]
[1773333266662,0.04232151,86.584,86.517,8.87860749]
[1773333267064,10.393,86.577,86.528,8.87158059]
[1773333267265,0.04232151,86.584,86.528,8.87158059]
[1773333267567,10.395,86.561,86.528,8.87158059]
[1773333268469,9.18183152,86.57,86.503,8.87158502]
[1773333269571,10.396,86.558,86.503,8.87158502]
[1773333269773,0.18789422,86.569,86.503,8.87158502]
[1773333271871,10.395,86.562,86.513,8.7844702]
[1773333272070,0.18789422,86.569,86.513,8.7844702]
[1773333272272,0.18789422,86.569,86.481,8.78447448]
[1773333272673,9.18183152,86.55,86.481,8.78447448]
[1773333272969,0.15969843,86.549,86.481,8.78447448]
[1773333273175,9.18183152,86.53,86.481,8.78447448]
[1773333274372,10.401,86.517,86.481,8.78447448]
[1773333274573,0.15947958,86.529,86.464,8.7842896]
[1773333274982,10.4,86.518,86.49,0.07351977]
[1773333275276,0.15947958,86.529,86.49,0.07351977]
[1773333275466,10.4,86.52,86.49,0.07351977]
[1773333275876,9.18183152,86.55,86.49,8.89870602]
[1773333276075,0.07744579,86.565,86.49,8.89870602]
[1773333276271,0.07744579,86.565,86.494,8.82518945]
[1773333276777,10.396,86.551,86.501,10.402]
[1773333276976,10.396,86.551,86.502,8.82518945]
[1773333278279,10.396,86.551,86.518,0.0729327]
[1773333278476,10.397,86.544,86.518,0.0729327]
[1773333278673,8.8270096,86.588,86.518,8.89945186]
[1773333278877,8.34420327,86.602,86.531,8.74195592]
[1773333279279,8.34420327,86.599,86.531,8.74195592]
[1773333279781,10.391,86.594,86.536,8.74195592]
[1773333280476,8.34420327,86.593,86.536,8.74195592]
[1773333280674,8.34420327,86.579,86.512,8.74195592]
[1773333281074,8.34420327,86.579,86.486,8.74195592]
[1773333281272,10.396,86.559,86.537,0.07382268]
[1773333281677,10.396,86.559,86.505,10.402]
[1773333281978,9.18183152,86.54,86.488,8.74195592]
[1773333282281,8.34420327,86.558,86.488,8.74195592]
[1773333283182,10.397,86.548,86.488,8.74195592]
[1773333283375,8.34420327,86.558,86.488,8.74195592]
[1773333283579,10.398,86.539,86.488,8.74195592]
[1773333283783,8.34420327,86.558,86.488,8.74195592]
[1773333284181,10.398,86.539,86.491,10.404]
[1773333284683,8.34420327,86.558,86.491,10.404]
[1773333285385,10.397,86.547,86.495,10.403]
[1773333285785,0.0744176,86.533,86.495,10.403]
[1773333286586,0.0744176,86.533,86.492,8.46971165]
[1773333287975,10.399,86.532,86.492,8.46971165]
[1773333288178,8.81919418,86.533,86.475,8.46971165]
[1773333288578,9.18183152,86.52,86.475,8.46971165]
[1773333289375,9.18183152,86.52,86.477,10.405]
[1773333289576,9.16427952,86.53,86.477,10.405]
[1773333289883,10.399,86.526,86.477,10.405]
[1773333290579,10.399,86.526,86.475,8.46971165]
[1773333290779,10.4,86.518,86.475,8.46971165]
[1773333291880,16.88217839,86.51,86.455,8.09539989]
[1773333292082,0.07294403,86.505,86.455,8.09539989]
[1773333292486,0.07294403,86.505,86.471,10.406]
[1773333292784,0.07294403,86.505,86.455,8.09539989]
[1773333293981,0.07294403,86.505,86.463,18.50239989]
[1773333294384,9.16427952,86.51,86.463,18.50239989]
[1773333295178,9.16427952,86.51,86.465,10.407]
[1773333295384,9.16427952,86.51,86.466,8.09539989]
[1773333296782,9.16427952,86.51,86.45,10.70535558]
[1773333296986,9.16427952,86.49,86.434,8.09539989]
[1773333297386,7.71789887,86.489,86.434,8.09539989]
[1773333298685,7.71789887,86.489,86.414,10.70535558]
[1773333298889,7.71789887,86.466,86.403,10.414]
[1773333299188,7.71789887,86.466,86.397,8.09539989]
[1773333299585,9.16427952,86.47,86.397,8.09539989]
[1773333299586,7.71789887,86.456,86.397,8.09539989]
[1773333299781,9.16427952,86.45,86.397,8.09539989]
[1773333300292,9.16427952,86.45,86.398,10.415]
[1773333300685,9.16427952,86.45,86.377,47.10535558]
[1773333300686,7.71789887,86.478,86.399,8.09539989]
[1773333300888,7.71789887,86.478,86.416,18.50839989]
[1773333300889,10.405,86.476,86.416,18.50839989]
[1773333301184,9.16427952,86.47,86.416,8.09539989]
[1773333301586,18.12489887,86.468,86.416,8.09539989]
[1773333301788,18.12489887,86.468,86.38,9.16427952]